Body,Body Name,Date,TransNo,Amount � (Excl VAT),Supplier name,Description,Expense Area,Expense Type,Expense Code,
http://opendatacommunities.org/id/london-borough-council/sutton,London Borough of Sutton,20/02/2023,10010356,-22.38, EB  AIMH UK AGM AMP AW,REFUND FOR CANCELLED EVENT,Health and Wellbeing,Staff Development And Training,A15022,
http://opendatacommunities.org/id/london-borough-council/sutton,London Borough of Sutton,08/02/2023,10010356,22.38, EB  AIMH UK AGM AMP AW,AIMH UK AGM & AWARDS WITH A SPECIAL INTERVIEW WITH DILYS DAWS TICKETS,Health and Wellbeing,Staff Development And Training,A15022,
http://opendatacommunities.org/id/london-borough-council/sutton,London Borough of Sutton,09/02/2023,10010356,105.89, SAFETYSUPPL,CHILDRENS CENTRE TRAVEL MUGS,Health and Wellbeing,Equipment And Materials Purchase,A40000,
http://opendatacommunities.org/id/london-borough-council/sutton,London Borough of Sutton,22/02/2023,10010356,8.32, TWINKL,TWINKL SUBSCRIPTION,Health and Wellbeing,Equipment And Materials Purchase,A40000,
http://opendatacommunities.org/id/london-borough-council/sutton,London Borough of Sutton,09/02/2023,10010356,111.38, WWW.BRADFORDS.CO.UK,BENCH,Health and Wellbeing,Equipment And Materials Purchase,A40000,
http://opendatacommunities.org/id/london-borough-council/sutton,London Borough of Sutton,27/01/2023,10010356,67.32, AMZNMKTPLACE AMAZON.CO,TOYS AND EQUIPMENT,Health and Wellbeing,Equipment And Materials Purchase,A40000,
http://opendatacommunities.org/id/london-borough-council/sutton,London Borough of Sutton,26/01/2023,10010356,4.82, EBAY O 27-09622-79014,TOYS AND EQUIPMENT,Health and Wellbeing,Equipment And Materials Purchase,A40000,
http://opendatacommunities.org/id/london-borough-council/sutton,London Borough of Sutton,26/01/2023,10010356,6.66, EBAY O 27-09622-79017,TOYS AND EQUIPMENT,Health and Wellbeing,Equipment And Materials Purchase,A40000,
http://opendatacommunities.org/id/london-borough-council/sutton,London Borough of Sutton,26/01/2023,10010356,2.41, EBAY O 27-09622-79016,TOYS AND EQUIPMENT,Health and Wellbeing,Equipment And Materials Purchase,A40000,
http://opendatacommunities.org/id/london-borough-council/sutton,London Borough of Sutton,04/02/2023,10010356,24.97, TK MAXX,TOYS AND EQUIPMENT,Health and Wellbeing,Equipment And Materials Purchase,A40000,
http://opendatacommunities.org/id/london-borough-council/sutton,London Borough of Sutton,31/01/2023,10010356,15.03, ASDA STORES,GROCERIES,Health and Wellbeing,Provisions,A41006,
http://opendatacommunities.org/id/london-borough-council/sutton,London Borough of Sutton,27/01/2023,10010356,61.96, SAINSBURYS.CO.UK,GROCERIES,Health and Wellbeing,Provisions,A41006,
http://opendatacommunities.org/id/london-borough-council/sutton,London Borough of Sutton,07/02/2023,10010356,49.06, TESCO STORES 5999,GROCERIES,Health and Wellbeing,Provisions,A41006,
http://opendatacommunities.org/id/london-borough-council/sutton,London Borough of Sutton,20/02/2023,10010356,49.93, TESCO STORES 5999,GROCERIES,Health and Wellbeing,Provisions,A41006,
http://opendatacommunities.org/id/london-borough-council/sutton,London Borough of Sutton,20/02/2023,10010356,80.86, SAINSBURYS.CO.UK,GROCERIES,Health and Wellbeing,Provisions,A41006,
http://opendatacommunities.org/id/london-borough-council/sutton,London Borough of Sutton,14/02/2023,10010356,4.80, ASDA SUPERSTORE,GROCERIES,Health and Wellbeing,Provisions,A41006,
http://opendatacommunities.org/id/london-borough-council/sutton,London Borough of Sutton,13/02/2023,10010356,75.03, TESCO STORES 5999,GROCERIES,Health and Wellbeing,Provisions,A41006,
http://opendatacommunities.org/id/london-borough-council/sutton,London Borough of Sutton,08/02/2023,10010356,289.17, SIXTY STORES LTD,"SHED FOR LITTLE HOLLAND HOUSE, AS PART OF THE SUTTON STEAMS AHEAD PROGRAMME ACTIVITY",Health and Wellbeing,Equipment And Materials Purchase,A40000,
http://opendatacommunities.org/id/london-borough-council/sutton,London Borough of Sutton,08/02/2023,10010356,289.17, SIXTY STORES LTD,"SHED FOR WHITEHALL, AS PART OF THE SUTTON STEAMS AHEAD PROGRAMME ACTIVITY",Health and Wellbeing,Equipment And Materials Purchase,A40000,
http://opendatacommunities.org/id/london-borough-council/sutton,London Borough of Sutton,04/02/2023,10010356,14.99, PARTICA LONDON LIMITED,SUTTON STEAMS AHEAD BALLOONS,Health and Wellbeing,Publicity,A44266,
http://opendatacommunities.org/id/london-borough-council/sutton,London Borough of Sutton,04/02/2023,10010356,13.85, WILKO RETAIL LIMITED,TABLE CLOTHS AND STRING FOR LAUNCH EVENT,Health and Wellbeing,Publicity,A44266,
http://opendatacommunities.org/id/london-borough-council/sutton,London Borough of Sutton,20/02/2023,10010356,101.74, IBIS STYLES HOTEL,"ACCOMMODATION IN BIRMINGHAM FOR ""REDACTED - PERSONAL DATA"", FOR THE SOLACE SPRINGBOARD CONFERENCE. FULL VAT RECEIPT PROVIDED UPON CHECKOUT.",Health and Wellbeing,Staff Development And Training,A15022,
http://opendatacommunities.org/id/london-borough-council/sutton,London Borough of Sutton,09/02/2023,10010356,4.99, AMZNMKTPLACE,"SPLIT - 20 PLUG SOCKET COVERS UK+4 CORNER PROTECTOR,PLUG COVERS FOR SOCKETS UK,PLUG PROTECTORS BABY PLUG SOCKET COVERS,SOCKET COVERS BABY UK,CHILD SAFETY PLUG (100%)",Health and Wellbeing,Equipment And Materials Purchase,A40000,
http://opendatacommunities.org/id/london-borough-council/sutton,London Borough of Sutton,26/02/2023,10010356,11.25, AMZNMKTPLACE,SPLIT - PARTITUKI 20 SETS OF COLORING CRAYONS. EACH ONE WITH 6 CRAYONS IN ASSORTED COLORS. GIFT FOR CHILDREN'S PARTY GUESTS (40.67%),Health and Wellbeing,Equipment And Materials Purchase,A40000,
http://opendatacommunities.org/id/london-borough-council/sutton,London Borough of Sutton,26/02/2023,10010356,17.87, AMZNMKTPLACE,"SPLIT - PARTITUKI 25 PACKS OF COLOURING PENCILS FOR KIDS EACH WITH 12 MINI COLOURING CRAYON PENCILS. PARTY BAGS, WEDDING FAVOURS, SCHOOLS AND ACTIVITY PACKS (64.6%)",Health and Wellbeing,Equipment And Materials Purchase,A40000,
http://opendatacommunities.org/id/london-borough-council/sutton,London Borough of Sutton,26/02/2023,10010356,-1.45, AMZNMKTPLACE,BALANCING ENTRY AMOUNT (-5.27%),Health and Wellbeing,Equipment And Materials Purchase,A40000,
http://opendatacommunities.org/id/london-borough-council/sutton,London Borough of Sutton,19/02/2023,10010356,122.37, AMZNMKTPLACE AMAZON.CO,"SPLIT - WD 5 TB MY PASSPORT FOR MAC PORTABLE HARD DRIVE - TIME MACHINE READY WITH PASSWORD PROTECTION, MIDNIGHT BLUE (100%)",Health and Wellbeing,Books,A43050,
http://opendatacommunities.org/id/london-borough-council/sutton,London Borough of Sutton,31/01/2023,10010356,11.66, AMZNMKTPLACE,SPLIT - 24V 2.5A POWER SUPPLY 60W AC ADAPTER CHARGER WITH 5.5 X 2.5MM DC PLUG JACK CONNECTOR FOR 24V 1A 1.5A 2A 2500MA DEVICES LED LIGHT STRIPS NVR DVR CCTV C (100%),Health and Wellbeing,Equipment And Materials Purchase,A40000,
http://opendatacommunities.org/id/london-borough-council/sutton,London Borough of Sutton,29/01/2023,10010356,10.74, AMZNMKTPLACE AMAZON.CO,"SPLIT - ARYEE 12V 5A POWER SUPPLY ADAPTER COMPATIBLE WITH LED LCD LIGHTING, LCD TFT MONITORS, TVS, DVDTVS, HD TVS, WIRELESS ROUTER EQUIPMENTS(5.5X2.5MM) (100%)",Health and Wellbeing,Equipment And Materials Purchase,A40000,
http://opendatacommunities.org/id/london-borough-council/sutton,London Borough of Sutton,12/02/2023,10010356,-29.99, AMZNMKTPLACE AMAZON.CO,REFUND AS ITEM COULD NOT BE DELIEVERED,Health and Wellbeing,Other Supplies & Services,A44291,
http://opendatacommunities.org/id/london-borough-council/sutton,London Borough of Sutton,08/02/2023,10010356,88.58, AMZNMKTPLACE,USED FOR CHILDREN'S EVENTS/GROUPS,Health and Wellbeing,Other Supplies & Services,A44291,
http://opendatacommunities.org/id/london-borough-council/sutton,London Borough of Sutton,08/02/2023,10010356,29.99, AMZNMKTPLACE AMAZON.CO,USED FOR OUTREACH EVENTS,Health and Wellbeing,Other Supplies & Services,A44291,
http://opendatacommunities.org/id/london-borough-council/sutton,London Borough of Sutton,08/02/2023,10010356,274.25, HIGH STREET VOUCHERS,GIFTS FOR VOLUNTEERS WHO HELPED OUT AT FH CONFERENCE,Health and Wellbeing,Volunteers Expenses,A15015,
http://opendatacommunities.org/id/london-borough-council/sutton,London Borough of Sutton,15/02/2023,10010356,39.99, ARGOS  SUTTON,TOOL KIT AND EXTENSION LEAD FOR TWEEDDALE,Health and Wellbeing,Equipment And Materials Purchase,A40000,
http://opendatacommunities.org/id/london-borough-council/sutton,London Borough of Sutton,15/02/2023,10010356,-4.99, MARKS&SPENCER PLC,REFUND FOR NEXT DAY DELIVERY,Health and Wellbeing,Furniture - Purchase,A40015,
http://opendatacommunities.org/id/london-borough-council/sutton,London Borough of Sutton,13/02/2023,10010356,70.82, MARKS&SPENCER PLC,PLANT FOR TWEEDDALE FAMILY HUB KITCHEN,Health and Wellbeing,Furniture - Purchase,A40015,
http://opendatacommunities.org/id/london-borough-council/sutton,London Borough of Sutton,09/02/2023,10010356,39.99, AMZNMKTPLACE AMAZON.CO,"FLIPCHART STAND FOR ""REDACTED - PERSONAL DATA""",Health and Wellbeing,Furniture - Purchase,A40015,
http://opendatacommunities.org/id/london-borough-council/sutton,London Borough of Sutton,01/02/2023,10010356,312.00, WWW.OFFICEFURNITUREONL,CUPBOARD FOR TWEEDDALE FAMILY HUB,Health and Wellbeing,Furniture - Purchase,A40015,
http://opendatacommunities.org/id/london-borough-council/sutton,London Borough of Sutton,01/02/2023,10010356,"1,086.67", IKEA LTD SHOP ONLINE,NEW KITCHEN TABLE FOR TWEEDDALE FAMILY HUB,Health and Wellbeing,Furniture - Purchase,A40015,
http://opendatacommunities.org/id/london-borough-council/sutton,London Borough of Sutton,05/02/2023,10010356,36.84, COSTCO WHOLESALE #121,FOOD FOR CONFERENCE,Health and Wellbeing,Catering,A41000,
http://opendatacommunities.org/id/london-borough-council/sutton,London Borough of Sutton,01/02/2023,10010356,25.02, FS  SLIDEMODEL,SLIDESHOW SUBSCRIPTION,Health and Wellbeing,Subscriptions,A47010,
http://opendatacommunities.org/id/london-borough-council/sutton,London Borough of Sutton,26/01/2023,10010356,11.97, AMZNMKTPLACE AMAZON.CO,FOR CONFERENCE EVENT,Health and Wellbeing,Miscellaneous Expenses,A49000,
http://opendatacommunities.org/id/london-borough-council/sutton,London Borough of Sutton,03/02/2023,10010356,8.32, SPOTIFY P20E5EB793,MUSIC FOR CEREMONIES,Health and Wellbeing,Subscriptions,A47010,
http://opendatacommunities.org/id/london-borough-council/sutton,London Borough of Sutton,03/02/2023,10010356,7.42, ASDA STORES 4873,TISSUES AND ANTI BAC WIPES,Health and Wellbeing,Miscellaneous Expenses,A49000,
http://opendatacommunities.org/id/london-borough-council/sutton,London Borough of Sutton,03/02/2023,10010356,13.32, MORDEN GARDEN CENTRE,DOORMATS,Health and Wellbeing,Miscellaneous Expenses,A49000,
http://opendatacommunities.org/id/london-borough-council/sutton,London Borough of Sutton,19/02/2023,10010356,67.00, AMZNMKTPLACE,SPLIT - 2 PACK EARPHONES WIRED HEADPHONES IN EAR WIRED EARBUDS WITH MICROPHONE NOISE ISOLATING HEADSET REMOTE SOUND CONTROL COMPATIBLE WITH PHONE SAMSUNG HUAW (100%),Peoples Services,Miscellaneous Expenses,A49000,
http://opendatacommunities.org/id/london-borough-council/sutton,London Borough of Sutton,19/02/2023,10010356,72.20, AMZNMKTPLACE,"SPLIT - FERKURN LAPTOP SLEEVE CASE 14 INCH COMPATIBLE WITH MACBOOK PRO 14 INCH, HP PAVILION 14 CHROMEBOOK 14A ELITEBOOK X360 PROBOOK, ASUS VIVOBOOK ZENBOOK, A (100%)",Peoples Services,Miscellaneous Expenses,A49000,
http://opendatacommunities.org/id/london-borough-council/sutton,London Borough of Sutton,16/02/2023,10010356,100.00, STARBUCKS,X 10 STARBUCKS GIFT VOUCHERS (10 EACH) FOR NEW STARTERS,Peoples Services,Miscellaneous Expenses,A49000,
http://opendatacommunities.org/id/london-borough-council/sutton,London Borough of Sutton,20/02/2023,10010356,10.58, WM MORRISONS STORE,"TEA, COFFEE, BISCUIT FOR NEW INDUCTION PROGRAMME - APPROVED BY TT",Peoples Services,Business Support Support,H10011,
http://opendatacommunities.org/id/london-borough-council/sutton,London Borough of Sutton,18/02/2023,10010356,27.87, AMZNMKTPLACE,HEADPHONES FOR NEW INDUCTION PROGRAMME,Peoples Services,Business Support Support,H10011,
http://opendatacommunities.org/id/london-borough-council/sutton,London Borough of Sutton,17/02/2023,10010356,4.10, WILKO RETAIL LIMITED,MUGS FOR NEW INDUCTION PROGRAMME - REDUCED PRICE,Peoples Services,Business Support Support,H10011,
http://opendatacommunities.org/id/london-borough-council/sutton,London Borough of Sutton,11/02/2023,10010356,185.00, IKEA LTD 144 CROYDON M,WORKING AT HOME EQUIPMENT FOR BUSINESS OFFICER WITH SUPPORTING DISABILITY - APPROVED BY HOS,Peoples Services,Business Support Support,H10011,
http://opendatacommunities.org/id/london-borough-council/sutton,London Borough of Sutton,21/02/2023,10010356,170.40, MICHAELS CIVIC ROBES,NEW DEPUTY MAYOR JABOT,Resources,Equipment And Materials Purchase,A40000,
http://opendatacommunities.org/id/london-borough-council/sutton,London Borough of Sutton,03/02/2023,10010356,13.88, OTTER.AI,OTTER.AI SUBSCRIPTION,Resources,Publicity,A44266,
http://opendatacommunities.org/id/london-borough-council/sutton,London Borough of Sutton,21/02/2023,10010356,259.35, MAILCHIMP,MAILCHIMP SUBSCRIPTION SHP NEEDS TO BE REGARDED TO C63500,Resources,Publicity,A44266,
http://opendatacommunities.org/id/london-borough-council/sutton,London Borough of Sutton,14/02/2023,10010356,450.53, MAILCHIMP,MAILCHIMP LBS,Resources,Publicity,A44266,
http://opendatacommunities.org/id/london-borough-council/sutton,London Borough of Sutton,06/02/2023,10010356,0.38, OTTER.AI,OTTER.AI FEE,Resources,Publicity,A44266,
http://opendatacommunities.org/id/london-borough-council/sutton,London Borough of Sutton,22/02/2023,10010356,2.73, CANVA  I03703-18210262,SHP CANVA FE FEE,Resources,Subscriptions,A47010,
http://opendatacommunities.org/id/london-borough-council/sutton,London Borough of Sutton,21/02/2023,10010356,99.39, CANVA  I03703-18210262,SHP CANVA SUBSCRIPTION RECHARGE TO SHP C36500,Resources,Subscriptions,A47010,
http://opendatacommunities.org/id/london-borough-council/sutton,London Borough of Sutton,15/02/2023,10010356,"11,500.00", CS MORRISONS GIFT CARD,CL&G,Resources,"Grants, Contributions & Donations",A47005,
http://opendatacommunities.org/id/london-borough-council/sutton,London Borough of Sutton,15/02/2023,10010356,"10,750.00", CS MORRISONS GIFT CARD,CL&G,Resources,"Grants, Contributions & Donations",A47005,
http://opendatacommunities.org/id/london-borough-council/sutton,London Borough of Sutton,12/02/2023,10010356,20.00, TFL OYSTER AUTO TOPUP,CL&G,Resources,"Grants, Contributions & Donations",A47005,
http://opendatacommunities.org/id/london-borough-council/sutton,London Borough of Sutton,28/01/2023,10010356,20.00, TFL OYSTER AUTO TOPUP,CL&G,Resources,"Grants, Contributions & Donations",A47005,
http://opendatacommunities.org/id/london-borough-council/sutton,London Borough of Sutton,15/02/2023,10010356,121.50, CHARTERED INSTITUTE OF,THIS PAYMENT IS FOR THE CILEX REMOTE EXAM.,Resources,Training - Professional Qualification,A15024,
http://opendatacommunities.org/id/london-borough-council/sutton,London Borough of Sutton,07/02/2023,10010356,108.00, COUNTY COURT,Fees,Resources,Insurance Claims,A44261,
http://opendatacommunities.org/id/london-borough-council/sutton,London Borough of Sutton,23/02/2023,10010356,580.00, RICS COM GBP CYBS,RICS VALUER REGISTRATION SCHEME 2023 - 5 LICENCES,Resources,Subscriptions,A47010,
http://opendatacommunities.org/id/london-borough-council/sutton,London Borough of Sutton,16/02/2023,10010356,44.97, AMZNMKTPLACE AMAZON.CO,SOFTENER TABLETS REQUIRED FOR WATER SOFTENER IN AUTOCLAVE ROOM.,Resources,Equipment And Materials Repairs & Maintenance,A40051,
http://opendatacommunities.org/id/london-borough-council/sutton,London Borough of Sutton,10/02/2023,10010356,15.62, AMZNMKTPLACE,"SIGNAGE FOLLOWING FRA AS REQUESTED ""REDACTED - PERSONAL DATA""",Resources,Equipment And Materials Repairs & Maintenance,A40051,
http://opendatacommunities.org/id/london-borough-council/sutton,London Borough of Sutton,29/01/2023,10010356,132.49, AMZNMKTPLACE AMAZON.CO,"VARIOUS ITEMS FOR THE INNOVATION GATEWAY AS REQUESTED BY ""REDACTED - PERSONAL DATA""",Resources,Contingency,A49001,
http://opendatacommunities.org/id/london-borough-council/sutton,London Borough of Sutton,10/02/2023,10010356,107.05, AMZNMKTPLACE AMAZON.CO,"MORE CIGARETTE BINS AS REQUESTED BY ""REDACTED - PERSONAL DATA""",Resources,Equipment And Materials Repairs & Maintenance,A40051,
http://opendatacommunities.org/id/london-borough-council/sutton,London Borough of Sutton,01/02/2023,10010356,92.07, AMZNMKTPLACE,"VARIOUS ITEMS REQUIRED TO SET UP ""REDACTED - PERSONAL DATA"" LIBRARY IN CIVIC LEVEL 1 AS REQUESTED ""REDACTED - PERSONAL DATA""",Resources,Equipment And Materials Repairs & Maintenance,A40051,
http://opendatacommunities.org/id/london-borough-council/sutton,London Borough of Sutton,31/01/2023,10010356,137.33, AMZNMKTPLACE,"CIGARETTE BINS AS REQUESTED BY ""REDACTED - PERSONAL DATA""",Resources,Equipment And Materials Repairs & Maintenance,A40051,
http://opendatacommunities.org/id/london-borough-council/sutton,London Borough of Sutton,23/02/2023,10010356,86.08, AMZNMKTPLACE,"MORE ITEMS FOR JENNYS LIBRARY AS REQUESTED BY ""REDACTED - PERSONAL DATA""",Resources,Equipment And Materials Repairs & Maintenance,A40051,
http://opendatacommunities.org/id/london-borough-council/sutton,London Borough of Sutton,22/02/2023,10010356,14.98, THE FLAG SHOP LTD,"NEW UNION JACK FLAG AS REQUESTED BY""REDACTED - PERSONAL DATA""",Resources,Equipment And Materials Repairs & Maintenance,A40051,
http://opendatacommunities.org/id/london-borough-council/sutton,London Borough of Sutton,21/02/2023,10010356,9.96, AMZNMKTPLACE,BUSY / VACANT ROOM SIGN FOR G9 AS REQUESTED BY CHILDRENS SERVICES.,Resources,Equipment And Materials Repairs & Maintenance,A40051,
http://opendatacommunities.org/id/london-borough-council/sutton,London Borough of Sutton,14/02/2023,10010356,"1,142.40", REDACTIVE PUBLISHING,ADVERT FOR HEAD OF FINANCE AND CONTROL,Resources,Advertising - Staff,A15027,
http://opendatacommunities.org/id/london-borough-council/sutton,London Borough of Sutton,23/02/2023,10010356,180.00, APM,APM SUBSCRIPTION,Environment Housing and Neighbourhoods,Staff Professional Membership Fees Non Payroll,A15025,
http://opendatacommunities.org/id/london-borough-council/sutton,London Borough of Sutton,07/02/2023,10010356,675.76, HOTEL AT BOOKING.COM,EMERGENCY ACCOMMODATION FOR HOMELESS HOUSEHOLDS,Environment Housing and Neighbourhoods,Bed & Breakfast,A56000,
http://opendatacommunities.org/id/london-borough-council/sutton,London Borough of Sutton,06/02/2023,10010356,776.13, HOTEL AT BOOKING.COM,EMERGENCY ACCOMMODATION FOR HOMELESS HOUSEHOLDS,Environment Housing and Neighbourhoods,Bed & Breakfast,A56000,
http://opendatacommunities.org/id/london-borough-council/sutton,London Borough of Sutton,02/02/2023,10010356,516.55, HOTEL AT BOOKING.COM,EMERGENCY ACCOMMODATION FOR HOMELESS HOUSEHOLDS,Environment Housing and Neighbourhoods,Bed & Breakfast,A56000,
http://opendatacommunities.org/id/london-borough-council/sutton,London Borough of Sutton,31/01/2023,10010356,518.27, HOTEL AT BOOKING.COM,EMERGENCY ACCOMMODATION FOR HOMELESS HOUSEHOLDS,Environment Housing and Neighbourhoods,Bed & Breakfast,A56000,
http://opendatacommunities.org/id/london-borough-council/sutton,London Borough of Sutton,27/01/2023,10010356,126.50, HOTEL AT BOOKING.COM,EMERGENCY ACCOMMODATION FOR HOMELESS HOUSEHOLDS,Environment Housing and Neighbourhoods,Bed & Breakfast,A56000,
http://opendatacommunities.org/id/london-borough-council/sutton,London Borough of Sutton,27/01/2023,10010356,92.00, HOTEL AT BOOKING.COM,EMERGENCY ACCOMMODATION FOR HOMELESS HOUSEHOLDS,Environment Housing and Neighbourhoods,Bed & Breakfast,A56000,
http://opendatacommunities.org/id/london-borough-council/sutton,London Borough of Sutton,27/01/2023,10010356,-92.00, HOTEL AT BOOKING.COM,REFUND OF EMERGENCY ACCOMMODATION FOR HOMELESS HOUSEHOLD,Environment Housing and Neighbourhoods,Bed & Breakfast,A56000,
http://opendatacommunities.org/id/london-borough-council/sutton,London Borough of Sutton,22/02/2023,10010356,11.99, AMZNBUSINESS 136QL3U44,SPLIT - A 5 IS AGAINST THE LAW: SOCIAL BOUNDARIES - A COMPASSIONATE BUT HONEST GUIDE FOR TEENS AND YOUNG ADULTS (THE INCREDIBLE 5-POINT SCALE) (100%),Peoples Services,Miscellaneous Expenses,A49000,
http://opendatacommunities.org/id/london-borough-council/sutton,London Borough of Sutton,15/02/2023,10010356,97.70, TEAM SPORT KARTING,X2 TICKETS FOR ADULT GO KARTING,Peoples Services,Client Care/Assistance,A61011,
http://opendatacommunities.org/id/london-borough-council/sutton,London Borough of Sutton,03/02/2023,10010356,14.00, LB CROYDON,BIRTH CERTIFICATE PURCHASE,Peoples Services,Equipment And Materials Purchase,A40000,
http://opendatacommunities.org/id/london-borough-council/sutton,London Borough of Sutton,15/02/2023,10010356,11.00, SUTTON REGISTER OFFICE,BIRTH CERTIFICATE PAYMENT,Peoples Services,Equipment And Materials Purchase,A40000,
http://opendatacommunities.org/id/london-borough-council/sutton,London Borough of Sutton,08/02/2023,10010356,24.98, AMZNMKTPLACE,ANTI BAC WIPES FOR THE QUAD (100%),Peoples Services,Miscellaneous Expenses,A49000,
http://opendatacommunities.org/id/london-borough-council/sutton,London Borough of Sutton,31/01/2023,10010356,30.32, MINICABIT,EMERGENCY TRANSPORT REQUIRED FOR A YOUNG PERSON,Peoples Services,C.C.A Travel & Subsistance,A61010,
http://opendatacommunities.org/id/london-borough-council/sutton,London Borough of Sutton,14/02/2023,10010356,13.29, AMZNMKTPLACE,SPLIT - JAQUES OF LONDON MAGNETIC CHESS SET | TRAVEL CHESS SET | FOLDING CHESS BOARD AND CHESS PIECES | QUALITY CHESS SETS | SINCE 1795 (100%),Peoples Services,Client Care/Assistance,A61011,
http://opendatacommunities.org/id/london-borough-council/sutton,London Borough of Sutton,02/02/2023,10010356,85.00, POST OFFICE COUNTER,PASSPORT PAYMENT @ POST OFFICE FOR YOUNG PERSON,Peoples Services,Client Care/Assistance,A61011,
http://opendatacommunities.org/id/london-borough-council/sutton,London Borough of Sutton,31/01/2023,10010356,52.00, SP PIZZA PILGRIMS,PIZZA GIFT DELIVERY PAYMENT,Peoples Services,Miscellaneous Expenses,A49000,
http://opendatacommunities.org/id/london-borough-council/sutton,London Borough of Sutton,02/02/2023,10010356,18.98, AMZNMKTPLACE,ITEM NEEDED FOR A YOUNG PERSON (50%),Peoples Services,Miscellaneous Expenses,A49000,
http://opendatacommunities.org/id/london-borough-council/sutton,London Borough of Sutton,02/02/2023,10010356,18.98, AMZNMKTPLACE,SPLIT - ARPAN PERSONALISED TEXT 36 POCKETS A4 PRESENTATION FOLDER DOCUMENT FILE FOLDER DISPLAY BOOK PORTFOLIO PROFESSIONAL CONFERENCE FOLDER FAUX LEATHER (BLACK) (50%),Peoples Services,Miscellaneous Expenses,A49000,
http://opendatacommunities.org/id/london-borough-council/sutton,London Borough of Sutton,15/02/2023,10010356,5.42, ASDA GROCERIES ONLINE,REFUND FOR GROCERY,Peoples Services,Miscellaneous Expenses,A49000,
http://opendatacommunities.org/id/london-borough-council/sutton,London Borough of Sutton,20/02/2023,10010356,18.74, HPI INSTANT INK UK,INK SUBSCRIPTION,Peoples Services,Miscellaneous Expenses,A49000,
http://opendatacommunities.org/id/london-borough-council/sutton,London Borough of Sutton,30/01/2023,10010356,98.97, WWW.JAVAWHISKERS.CO.UK,"""REDACTED - PERSONAL DATA""LOUNGE PAYMENT",Peoples Services,Miscellaneous Expenses,A49000,
http://opendatacommunities.org/id/london-borough-council/sutton,London Borough of Sutton,25/01/2023,10010356,9.98, AMAZON,ITEMS NEEDED FOR WILLOW RISE CHILDRENS HOME,Peoples Services,Miscellaneous Expenses,A49000,
http://opendatacommunities.org/id/london-borough-council/sutton,London Borough of Sutton,24/02/2023,10010356,26.54, AMZNMKTPLACE,"SPLIT - MALACASA DINNER PLATES, 9.5 INCH IVORY WHITE PORCELAIN SQUARE DINNER PLATES SET OF 6, DISHWASHER & MICROWAVE SAFE SERVING PLATES, SERIES JULIA (109.26%)",Peoples Services,Miscellaneous Expenses,A49000,
http://opendatacommunities.org/id/london-borough-council/sutton,London Borough of Sutton,24/02/2023,10010356,-2.25, AMZNMKTPLACE,BALANCING ENTRY AMOUNT (-27.78%),Peoples Services,Miscellaneous Expenses,A49000,
http://opendatacommunities.org/id/london-borough-council/sutton,London Borough of Sutton,23/02/2023,10010356,13.62, AMZNMKTPLACE,"SPLIT - FINEDINE MIXING BOWLS SET - 5-PIECE, EASY-GRIP, STAINLESS STEEL MIXING BOWLS FOR BAKING, COOKING, SALAD & FOOD PREP - LARGE, MEDIUM AND SMALL METAL NE (100%)",Peoples Services,Miscellaneous Expenses,A49000,
http://opendatacommunities.org/id/london-borough-council/sutton,London Borough of Sutton,23/02/2023,10010356,119.80, ASDA GROCERIES ONLINE,ASDA SHOPPING PAYMENT,Peoples Services,Miscellaneous Expenses,A49000,
http://opendatacommunities.org/id/london-borough-council/sutton,London Borough of Sutton,01/02/2023,10010356,18.74, HPI INSTANT INK UK,INK SUBSCRIPTION FOR WILLOW RISE CHILDRENS HOME,Peoples Services,Miscellaneous Expenses,A49000,
http://opendatacommunities.org/id/london-borough-council/sutton,London Borough of Sutton,16/02/2023,10010356,88.44, ASDA GROCERIES ONLINE,ASDA SHOPPING PAYMENT,Peoples Services,Miscellaneous Expenses,A49000,
http://opendatacommunities.org/id/london-borough-council/sutton,London Borough of Sutton,16/02/2023,10010356,14.16, AMZNBUSINESS 1362X6T04,"SPLIT - ADDIS ECO MADE FROM 100% PLASTIC FAMILY KITCHEN PEDAL BIN, 40 LITRE, 519000ADF, RECYCLED LIGHT GREY (100%)",Peoples Services,Miscellaneous Expenses,A49000,
http://opendatacommunities.org/id/london-borough-council/sutton,London Borough of Sutton,15/02/2023,10010356,9.99, AMZNMKTPLACE AMAZON.CO,SPLIT - ARGON TABLEWARE 6X WHITE 15.4CM (6 INCH) WIDE RIMMED SIDE PLATES - DESERT SERVING DINNER SET BREAD PLATE - DISHWASHER AND MICROWAVE SAFE CERAMIC (100%),Peoples Services,Miscellaneous Expenses,A49000,
http://opendatacommunities.org/id/london-borough-council/sutton,London Borough of Sutton,17/02/2023,10010356,15.99, NETFLIX.COM,NETFLIX MONTHLY PAYMENT FOR YOUNG PERSON,Peoples Services,Miscellaneous Expenses,A49000,
http://opendatacommunities.org/id/london-borough-council/sutton,London Borough of Sutton,16/02/2023,10010356,-11.01, ASDA GROCERIES ONLINE,ASDA SHOPPING PAYMENT REFUND,Peoples Services,Miscellaneous Expenses,A49000,
http://opendatacommunities.org/id/london-borough-council/sutton,London Borough of Sutton,04/02/2023,10010356,133.62, ASDA GROCERIES ONLINE,FOOD REQUIRED FOR THE HOME,Peoples Services,Miscellaneous Expenses,A49000,
http://opendatacommunities.org/id/london-borough-council/sutton,London Borough of Sutton,04/02/2023,10010356,-10.39, ASDA GROCERIES ONLINE,FOOD REQUIRED FOR THE HOME,Peoples Services,Miscellaneous Expenses,A49000,
http://opendatacommunities.org/id/london-borough-council/sutton,London Borough of Sutton,09/02/2023,10010356,127.62, ASDA GROCERIES ONLINE,GROCERY SHOPPING,Peoples Services,Miscellaneous Expenses,A49000,
http://opendatacommunities.org/id/london-borough-council/sutton,London Borough of Sutton,03/02/2023,10010356,15.37, HOLLYWOOD BOWL,ACTIVITY FOR YOUNG PERSON,Peoples Services,Miscellaneous Expenses,A49000,
http://opendatacommunities.org/id/london-borough-council/sutton,London Borough of Sutton,09/02/2023,10010356,-6.17, ASDA GROCERIES ONLINE,REFUND FOR THE HOMES GROCERY,Peoples Services,Miscellaneous Expenses,A49000,
http://opendatacommunities.org/id/london-borough-council/sutton,London Borough of Sutton,08/02/2023,10010356,6.98, AMZNMKTPLACE AMAZON.CO,SETTING UP FOR A HOME (100%),Peoples Services,Miscellaneous Expenses,A49000,
http://opendatacommunities.org/id/london-borough-council/sutton,London Borough of Sutton,23/02/2023,10010356,-0.50, ASDA GROCERIES ONLINE,ASDA SHOPPING PAYMENT REFUND,Peoples Services,Miscellaneous Expenses,A49000,
http://opendatacommunities.org/id/london-borough-council/sutton,London Borough of Sutton,10/02/2023,10010356,"1,320.00", TEAM TEACH,SUBSCRIPTION FOR TRAINING,Peoples Services,Miscellaneous Expenses,A49000,
http://opendatacommunities.org/id/london-borough-council/sutton,London Borough of Sutton,08/02/2023,10010356,385.00, LBSUTTON,PLANNING APPLICATION FEE FOR SATELLITE HOME,Peoples Services,Approved Lodgings,A61000,
http://opendatacommunities.org/id/london-borough-council/sutton,London Borough of Sutton,09/02/2023,10010356,16.67, HORNIMAN MUSEUM,ACITVITY FOR YOUNG PERSON,Peoples Services,Client Care/Assistance,A61011,
http://opendatacommunities.org/id/london-borough-council/sutton,London Borough of Sutton,26/01/2023,10010356,-0.50, ASDA GROCERIES ONLINE,ASDA GROCERY PAYMENT REFUND,Peoples Services,Client Care/Assistance,A61011,
http://opendatacommunities.org/id/london-borough-council/sutton,London Borough of Sutton,26/01/2023,10010356,170.09, ASDA GROCERIES ONLINE,ASDA GROCERY PAYMENT,Peoples Services,Client Care/Assistance,A61011,
http://opendatacommunities.org/id/london-borough-council/sutton,London Borough of Sutton,13/02/2023,10010356,16.99, AMZNMKTPLACE,SPLIT - SIMPLYWIRE - DISH DRAINER - ANTI RUST DRYING RACK - BLACK WITH BLACK CUTLERY BASKET (100%),Peoples Services,Client Care/Assistance,A61011,
http://opendatacommunities.org/id/london-borough-council/sutton,London Borough of Sutton,13/02/2023,10010356,15.51, AMZNMKTPLACE,"SPLIT - TOUCH CONTROL TABLE LAMP,3-WAY DIMMABLE BEDSIDE LAMPS NIGHTSTAND LAMPS WITH FLAXEN FABRIC SHADE FOR BEDROOM LIVING ROOM,LED BULBS INCLUDED A61021 G03080 (100%)",Peoples Services,Set Up Costs - Children Leaving Care,A61021,
http://opendatacommunities.org/id/london-borough-council/sutton,London Borough of Sutton,20/02/2023,10010356,249.99, AMZNMKTPLACE AMAZON.CO,SPLIT - PANANA ITALIAN STYLE FAUX LEATHER SOFA 2 SEATER CORNER SOFA MODERN SOFA SETTEE COUCH SEAT PADDED SOFA FOR LIVING ROOM OFFICE LOUNGE (CREAM - 2 SEATER) (100%),Peoples Services,Set Up Costs - Children Leaving Care,A61021,
http://opendatacommunities.org/id/london-borough-council/sutton,London Borough of Sutton,20/02/2023,10010356,291.66, AMZNMKTPLACE AMAZON.CO,SPLIT - PANANA ITALIAN STYLE FAUX LEATHER SOFA 3 SEATER CORNER SOFA MODERN SOFA SETTEE COUCH SEAT PADDED SOFA FOR LIVING ROOM OFFICE LOUNGE (CREAM - 3 SEATER) (100%),Peoples Services,Set Up Costs - Children Leaving Care,A61021,
http://opendatacommunities.org/id/london-borough-council/sutton,London Borough of Sutton,19/02/2023,10010356,21.65, AMZNMKTPLACE AMAZON.CO,"SPLIT - CUTLERY SET, BEWOS 32 PIECE STAINLESS STEEL FLATWARE SET, TABLEWARE SILVERWARE SET WITH SPOON KNIFE AND FORK SET, SERVICE FOR 8, DISHWASHER SAFE/EASY (100%)",Peoples Services,Set Up Costs - Children Leaving Care,A61021,
http://opendatacommunities.org/id/london-borough-council/sutton,London Borough of Sutton,19/02/2023,10010356,11.66, AMZNMKTPLACE AMAZON.CO,"SPLIT - 12PCS BED SLAT CENTRE CAPS HOLDERS, 24PCS SIDE SLAT BRACKET COVER (63MMX9MM INSIDE),REPLACEMENT PLASTIC BED SLAT HOLDERS KITS BUNDLES,FOR SINGLE AND D (100%)",Peoples Services,Set Up Costs - Children Leaving Care,A61021,
http://opendatacommunities.org/id/london-borough-council/sutton,London Borough of Sutton,08/02/2023,10010356,34.50, AMZNMKTPLACE,SETTING UP ALLOWANCE FOR A LEAVING CARE YOUNG PERSON (100%),Peoples Services,Set Up Costs - Children Leaving Care,A61021,
http://opendatacommunities.org/id/london-borough-council/sutton,London Borough of Sutton,08/02/2023,10010356,198.95, AMZNMKTPLACE,SETTING UP ALLOWANCE FOR A LEAVING CARE YOUNG PERSON (100%),Peoples Services,Set Up Costs - Children Leaving Care,A61021,
http://opendatacommunities.org/id/london-borough-council/sutton,London Borough of Sutton,08/02/2023,10010356,65.99, AMZNMKTPLACE,SETTING UP ALLOWANCE FOR A LEAVING CARE YOUNG PERSON 65.99 A61021 G03080 AMAZON (100%),Peoples Services,Set Up Costs - Children Leaving Care,A61021,
http://opendatacommunities.org/id/london-borough-council/sutton,London Borough of Sutton,09/02/2023,10010356,87.38, AMZNMKTPLACE,SETTING UP ALLOWANCE FOR A LEAVING CARE YOUNG PERSON A61021 G03080 (100%),Peoples Services,Set Up Costs - Children Leaving Care,A61021,
http://opendatacommunities.org/id/london-borough-council/sutton,London Borough of Sutton,09/02/2023,10010356,264.00, AMZNMKTPLACE,SETTING UP ALLOWANCE FOR A LEAVING CARE YOUNG PERSON (100%),Peoples Services,Set Up Costs - Children Leaving Care,A61021,
http://opendatacommunities.org/id/london-borough-council/sutton,London Borough of Sutton,09/02/2023,10010356,15.98, AMZNMKTPLACE AMAZON.CO,SETTING UP ALLOWANCE FOR A LEAVING CARE YOUNG PERSON A61021 G03080 (100%),Peoples Services,Set Up Costs - Children Leaving Care,A61021,
http://opendatacommunities.org/id/london-borough-council/sutton,London Borough of Sutton,10/02/2023,10010356,18.95, AMZNMKTPLACE AMAZON.CO,SETTING UP ALLOWANCE FOR A LEAVING CARE YOUNG PERSON (100%),Peoples Services,Set Up Costs - Children Leaving Care,A61021,
http://opendatacommunities.org/id/london-borough-council/sutton,London Borough of Sutton,10/02/2023,10010356,297.00, AMZNMKTPLACE AMAZON.CO,SETTING UP ALLOWANCE FOR A LEAVING CARE YOUNG PERSON A61021 G03080 (100%),Peoples Services,Set Up Costs - Children Leaving Care,A61021,
http://opendatacommunities.org/id/london-borough-council/sutton,London Borough of Sutton,10/02/2023,10010356,199.95, AMZNMKTPLACE AMAZON.CO,SETTING UP ALLOWANCE FOR A LEAVING CARE YOUNG PERSON A61021 G03080 (100%),Peoples Services,Set Up Costs - Children Leaving Care,A61021,
http://opendatacommunities.org/id/london-borough-council/sutton,London Borough of Sutton,10/02/2023,10010356,229.99, AMZNMKTPLACE AMAZON.CO,SETTING UP ALLOWANCE FOR A LEAVING CARE YOUNG PERSON A61021 G03080 (100%),Peoples Services,Set Up Costs - Children Leaving Care,A61021,
http://opendatacommunities.org/id/london-borough-council/sutton,London Borough of Sutton,13/02/2023,10010356,8.99, AMZNMKTPLACE AMAZON.CO,SPLIT - 6 PIECES COLORFUL INSPIRATIONAL WALL DECAL WATERCOLOR INSPIRATIONAL QUOTE WALL STICKER MOTIVATIONAL LETTERING STICKER FOR HOME BEDROOM BATHROOM KITCHE (100%),Peoples Services,Set Up Costs - Children Leaving Care,A61021,
http://opendatacommunities.org/id/london-borough-council/sutton,London Borough of Sutton,11/02/2023,10010356,43.98, AMZNMKTPLACE AMAZON.CO,SPLIT - HADEN HERITAGE ELECTRIC BLUE KETTLE - ENERGY EFFICIENT - FAST BOIL KETTLE - BOIL DRY CUT-OFF PROTECTION - SPARE FILTER INCLUDED IN THE BOX - BPA FREE (100%),Peoples Services,Set Up Costs - Children Leaving Care,A61021,
http://opendatacommunities.org/id/london-borough-council/sutton,London Borough of Sutton,11/02/2023,10010356,19.00, AMZNMKTPLACE AMAZON.CO,SPLIT - MEXERRIS MICROFIBRE SPRAY MOP FOR FLOOR CLEANING - WET DRY KITCHEN FLOOR CLEANING MOP WITH 2 REFILLABLE BOTTLE 360�ROTATABLE HARDWOOD MOP FOR LAMINAT (100%),Peoples Services,Set Up Costs - Children Leaving Care,A61021,
http://opendatacommunities.org/id/london-borough-council/sutton,London Borough of Sutton,10/02/2023,10010356,8.95, AMZNMKTPLACE AMAZON.CO,SPLIT - TERRY TEA TOWELS 100% COTTON SET DISH CLOTHS KITCHEN CLEANING DRYING T TOWEL UK (12) (100%),Peoples Services,Set Up Costs - Children Leaving Care,A61021,
http://opendatacommunities.org/id/london-borough-council/sutton,London Borough of Sutton,30/01/2023,10010356,159.90, ZOOM.US 888-799-9666,SUBSCRIPTION REQUIRED FOR TEAM,Peoples Services,Subscriptions,A47010,
http://opendatacommunities.org/id/london-borough-council/sutton,London Borough of Sutton,17/02/2023,10010356,159.90, ZOOM.US 888-799-9666,SUBSCRIPTION FOR THE TEAM,Peoples Services,Subscriptions,A47010,
http://opendatacommunities.org/id/london-borough-council/sutton,London Borough of Sutton,03/02/2023,10010356,38.22, TRAVELODGE,HOTEL NEEDED FOR OVER NIGHT STAY,Peoples Services,Miscellaneous Expenses,A49000,
http://opendatacommunities.org/id/london-borough-council/sutton,London Borough of Sutton,20/02/2023,10010356,78.00, WALLINGTON CARS & COUR,CAB PAYMENT,Peoples Services,C.C.A Travel & Subsistance,A61010,
http://opendatacommunities.org/id/london-borough-council/sutton,London Borough of Sutton,21/02/2023,10010356,97.04, HOLLYWOOD BOWL,BOWLING,Peoples Services,Client Care/Assistance,A61011,
http://opendatacommunities.org/id/london-borough-council/sutton,London Borough of Sutton,03/02/2023,10010356,22.00, SUTTON REGISTER OFFICE,BIRTH CERTIFICATE PAYMENT,Peoples Services,Equipment And Materials Purchase,A40000,
http://opendatacommunities.org/id/london-borough-council/sutton,London Borough of Sutton,11/01/2023,10010356,-25.00, GEN REGISTER OFFICE,BIRTH CERTIFICATE REFUND,Peoples Services,Equipment And Materials Purchase,A40000,
http://opendatacommunities.org/id/london-borough-council/sutton,London Borough of Sutton,24/01/2023,10010356,-18.50, GEN REGISTER OFFICE,BIRTH CERTIFICATE REFUND,Peoples Services,Equipment And Materials Purchase,A40000,
http://opendatacommunities.org/id/london-borough-council/sutton,London Borough of Sutton,23/02/2023,10010356,33.00, SUTTON REGISTER OFFICE,BIRTH CERTIFICATE PAYMENT,Peoples Services,Equipment And Materials Purchase,A40000,
http://opendatacommunities.org/id/london-borough-council/sutton,London Borough of Sutton,20/02/2023,10010356,70.00, SURREY CC CARD PAY,BIRTH CERTIFICATE PAYMENT,Peoples Services,Equipment And Materials Purchase,A40000,
http://opendatacommunities.org/id/london-borough-council/sutton,London Borough of Sutton,15/02/2023,10010356,19.96, AMZNMKTPLACE AMAZON.CO,SPLIT - EUROPA 120 PAGE WIRE RULED NOTEMAKER - ASSORTED COLOUR (PACK OF 10) (100%),Peoples Services,Miscellaneous Expenses,A49000,
http://opendatacommunities.org/id/london-borough-council/sutton,London Borough of Sutton,14/02/2023,10010356,45.90, TESCO STORES 5999,TESCO FOOD DELIVERY,Peoples Services,Client Care/Assistance,A61011,
http://opendatacommunities.org/id/london-borough-council/sutton,London Borough of Sutton,15/02/2023,10010356,57.37, EASYHOTEL LEEDS LIMITE,EASYHOTEL LEEDS FOR STAY,Peoples Services,Client Care/Assistance,A61011,
http://opendatacommunities.org/id/london-borough-council/sutton,London Borough of Sutton,15/02/2023,10010356,57.37, EASYHOTEL LEEDS LIMITE,EASYHOTEL LEEDS FOR STAY,Peoples Services,Client Care/Assistance,A61011,
http://opendatacommunities.org/id/london-borough-council/sutton,London Borough of Sutton,15/02/2023,10010356,45.98, EUROFLORIST UK LTD,FLOWERS PAYMENT FOR FOSTER CARER,Peoples Services,Miscellaneous Expenses,A49000,
http://opendatacommunities.org/id/london-borough-council/sutton,London Borough of Sutton,15/02/2023,10010356,31.98, EUROFLORIST UK LTD,FLOWERS PAYMENT FOR FOSTER CARER,Peoples Services,Miscellaneous Expenses,A49000,
http://opendatacommunities.org/id/london-borough-council/sutton,London Borough of Sutton,22/02/2023,10010356,-45.98, EUROFLORIST UK LTD,FLOWERS PAYMENT FOR FOSTER CARER REFUND,Peoples Services,Miscellaneous Expenses,A49000,
http://opendatacommunities.org/id/london-borough-council/sutton,London Borough of Sutton,23/02/2023,10010356,12.00, EB  OUTBOUND PRACTICE,TRAINING,Peoples Services,Equipment And Materials Purchase,A40000,
http://opendatacommunities.org/id/london-borough-council/sutton,London Borough of Sutton,31/01/2023,10010356,240.00, DOCUSIGN INC. GBP,DOCUSIGN ANNUAL PAYMENT,Peoples Services,Miscellaneous Expenses,A49000,
http://opendatacommunities.org/id/london-borough-council/sutton,London Borough of Sutton,20/02/2023,10010356,209.60, WWW.BIGYELLOW.CO.UK,BIG YELLOW STORAGE PAYMENT,Peoples Services,Equipment And Materials Purchase,A40000,
http://opendatacommunities.org/id/london-borough-council/sutton,London Borough of Sutton,14/02/2023,10010356,3.19, AMZNMKTPLACE AMAZON.CO,SPLIT - SOLAR SYSTEM - EASY TO LEARN PLANETS & SPACE CHILDRENS WALL CHART EDUCATIONAL CHILDS POSTER PRINT WALLCHART G03400 SUTTON FAMILY CENTRE (100%),Peoples Services,Equipment And Materials Purchase,A40000,
http://opendatacommunities.org/id/london-borough-council/sutton,London Borough of Sutton,13/02/2023,10010356,8.99, AMZNMKTPLACE AMAZON.CO,SPLIT - COLORFUL INSPIRATIONAL QUOTE WALL STICKERS WATERCOLOR PAINT INK SPLATTER SPLOTCHES WALL DECALS MOTIVATIONAL LETTER POSITIVE SAYINGS PHRASES EDUCATIONA (100%),Peoples Services,Miscellaneous Expenses,A49000,
http://opendatacommunities.org/id/london-borough-council/sutton,London Borough of Sutton,13/02/2023,10010356,12.99, AMZNMKTPLACE AMAZON.CO,"SPLIT - 9 PCS JUNGLE ANIMAL WALL DECALS, REMOVABLE WOODLAND SAFARI ANIMAL WALL STICKER WITH INSPIRATIONAL QUOTES FOR BABY BOYS GIRLS INFANT CHILDREN KIDS NURS G03400 SUTTON FAMILY CENTRE (100%)",Peoples Services,Miscellaneous Expenses,A49000,
http://opendatacommunities.org/id/london-borough-council/sutton,London Borough of Sutton,29/01/2023,10010356,8.20, AMZNBUSINESS 1O6SX5XR4,"SPLIT - PUKKA PAD, A4 METALLIC JOTTA BOOK 3 PACK - 21 X 30CM - WIREBOUND NOTEBOOK WITH 8MM LINES AND 80GSM PAPER - FEATURES 4-HOLE PUNCH MARGINS AND PERFORATE (100%)",Peoples Services,Miscellaneous Expenses,A49000,
http://opendatacommunities.org/id/london-borough-council/sutton,London Borough of Sutton,29/01/2023,10010356,14.95, AMZNBUSINESS 1O5K95XL4,ITEM NEEDED FOR USE (100%),Peoples Services,Miscellaneous Expenses,A49000,
http://opendatacommunities.org/id/london-borough-council/sutton,London Borough of Sutton,13/02/2023,10010356,13.99, AMZNMKTPLACE AMAZON.CO,SPLIT - DECOWALL DA-1713 RAINBOW AND CLOUDS KIDS WALL STICKERS DECALS PEEL AND STICK REMOVABLE FOR NURSERY BEDROOM LIVING ROOM ART MURALS DECORATIONS G03400 SUTTON FAMILY CENTRE (100%),Peoples Services,Miscellaneous Expenses,A49000,
http://opendatacommunities.org/id/london-borough-council/sutton,London Borough of Sutton,12/02/2023,10010356,8.33, AMZNMKTPLACE,"SPLIT - WHITEFURZE 30 LITRE PLASTIC SWING TOP BIN, SILVER, 15.75 X 12.28 X 10.24 CM (25%)",Peoples Services,Client Care/Assistance,A61011,
http://opendatacommunities.org/id/london-borough-council/sutton,London Borough of Sutton,12/02/2023,10010356,17.49, AMZNMKTPLACE,"SPLIT - A3 RECYCLED SUGAR PAPER PASTEL COLOURS 250 LARGE SHEETS IN 10 ASSORTED COLOURS, GREAT FOR KIDS ARTS & CRAFTS, DRAWING, PAINTING & SCRAP BOOKING. 42 X (100%)",Peoples Services,Client Care/Assistance,A61011,
http://opendatacommunities.org/id/london-borough-council/sutton,London Borough of Sutton,12/02/2023,10010356,9.99, AMZNMKTPLACE,"SPLIT - 200 SHEETS COLOURED A4 PAPER, 20 COLORS ORIGAMI PAPERS, COLORED CARD A4, 80GSM COLOR COPY PRINTER PAPER, KIDS HANDCRAFT PAPER FOR HANDMADE ARTS AND DI (50%)",Peoples Services,Client Care/Assistance,A61011,
http://opendatacommunities.org/id/london-borough-council/sutton,London Borough of Sutton,12/02/2023,10010356,9.99, AMZNMKTPLACE,"SPLIT - 200 SHEETS COLOURED A4 PAPER, 20 COLORS ORIGAMI PAPERS, COLORED CARD A4, 80GSM COLOR COPY PRINTER PAPER, KIDS HANDCRAFT PAPER FOR HANDMADE ARTS AND DI (50%)",Peoples Services,Client Care/Assistance,A61011,
http://opendatacommunities.org/id/london-borough-council/sutton,London Borough of Sutton,10/02/2023,10010356,12.46, AMZNMKTPLACE,"SPLIT - SCOLA ARTMIX 6 X 600 ML PAINT, COLORED (ASSORTED) (50%)",Peoples Services,Client Care/Assistance,A61011,
http://opendatacommunities.org/id/london-borough-council/sutton,London Borough of Sutton,10/02/2023,10010356,12.46, AMZNMKTPLACE,"SPLIT - SCOLA ARTMIX 6 X 600 ML PAINT, COLORED (ASSORTED) (50%)",Peoples Services,Client Care/Assistance,A61011,
http://opendatacommunities.org/id/london-borough-council/sutton,London Borough of Sutton,23/02/2023,10010356,59.99, AMZNMKTPLACE AMAZON.CO,"SPLIT - NORTHERN STONE JUNIOR HEIGHT ADJUSTABLE BASKETBALL HOOP, FREE STANDING PORTABLE BASKETBALL STAND FOR KIDS (100%)",Peoples Services,Client Care/Assistance,A61011,
http://opendatacommunities.org/id/london-borough-council/sutton,London Borough of Sutton,23/02/2023,10010356,12.06, AMZNMKTPLACE AMAZON.CO,SPLIT - BASKETBALL CHILDREN WOMEN MEN SIZES 5 6 7 ORANGE IDEAL FOR INDOOR TRAINING MATCHES SOFT NON-SLIP SURFACE HIGH DURABILITY GOOD GRIP RUBBER (SUPERIOR #7 (77.09%),Peoples Services,Client Care/Assistance,A61011,
http://opendatacommunities.org/id/london-borough-council/sutton,London Borough of Sutton,23/02/2023,10010356,3.74, AMZNMKTPLACE AMAZON.CO,"SPLIT - BASKETBALL CHILDREN WOMEN MEN SIZES 5 6 7 ORANGE IDEAL FOR INDOOR TRAINING MATCHES SOFT NON-SLIP SURFACE HIGH DURABILITY GOOD GRIP RUBBER (DRIBBLE #7, (23.92%)",Peoples Services,Client Care/Assistance,A61011,
http://opendatacommunities.org/id/london-borough-council/sutton,London Borough of Sutton,23/02/2023,10010356,-0.16, AMZNMKTPLACE AMAZON.CO,BALANCING ENTRY AMOUNT (-3.03%),Peoples Services,Client Care/Assistance,A61011,
http://opendatacommunities.org/id/london-borough-council/sutton,London Borough of Sutton,13/02/2023,10010356,17.49, AMZNMKTPLACE,"SPLIT - A3 RECYCLED SUGAR PAPER PASTEL COLOURS 250 LARGE SHEETS IN 10 ASSORTED COLOURS, GREAT FOR KIDS ARTS & CRAFTS, DRAWING, PAINTING & SCRAP BOOKING. 42 X (100%)",Peoples Services,Client Care/Assistance,A61011,
http://opendatacommunities.org/id/london-borough-council/sutton,London Borough of Sutton,13/02/2023,10010356,5.99, AMZNMKTPLACE,"SPLIT - SOFT SWEEPING BRUSH INDOOR BROOM - STYLISH SILVER KITCHEN BROOM IDEAL FOR HOUSEHOLD CLEANING, BROOM INDOOR WITH 30CM SOFT BRISTLE BRUSH HEAD AND 120CM LONG SCREW FIT METAL HANDLE (25%)",Peoples Services,Client Care/Assistance,A61011,
http://opendatacommunities.org/id/london-borough-council/sutton,London Borough of Sutton,13/02/2023,10010356,5.99, AMZNMKTPLACE,"SPLIT - SOFT SWEEPING BRUSH INDOOR BROOM - STYLISH SILVER KITCHEN BROOM IDEAL FOR HOUSEHOLD CLEANING, BROOM INDOOR WITH 30CM SOFT BRISTLE BRUSH HEAD AND 120CM LONG SCREW FIT METAL HANDLE (25%)",Peoples Services,Client Care/Assistance,A61011,
http://opendatacommunities.org/id/london-borough-council/sutton,London Borough of Sutton,13/02/2023,10010356,5.99, AMZNMKTPLACE,"SPLIT - SOFT SWEEPING BRUSH INDOOR BROOM - STYLISH SILVER KITCHEN BROOM IDEAL FOR HOUSEHOLD CLEANING, BROOM INDOOR WITH 30CM SOFT BRISTLE BRUSH HEAD AND 120CM LONG SCREW FIT METAL HANDLE (25%)",Peoples Services,Client Care/Assistance,A61011,
http://opendatacommunities.org/id/london-borough-council/sutton,London Borough of Sutton,13/02/2023,10010356,5.99, AMZNMKTPLACE,"SPLIT - SOFT SWEEPING BRUSH INDOOR BROOM - STYLISH SILVER KITCHEN BROOM IDEAL FOR HOUSEHOLD CLEANING, BROOM INDOOR WITH 30CM SOFT BRISTLE BRUSH HEAD AND 120CM LONG SCREW FIT METAL HANDLE (25%)",Peoples Services,Client Care/Assistance,A61011,
http://opendatacommunities.org/id/london-borough-council/sutton,London Borough of Sutton,12/02/2023,10010356,8.33, AMZNMKTPLACE,"SPLIT - WHITEFURZE 30 LITRE PLASTIC SWING TOP BIN, SILVER, 15.75 X 12.28 X 10.24 CM (25%)",Peoples Services,Client Care/Assistance,A61011,
http://opendatacommunities.org/id/london-borough-council/sutton,London Borough of Sutton,12/02/2023,10010356,8.33, AMZNMKTPLACE,"SPLIT - WHITEFURZE 30 LITRE PLASTIC SWING TOP BIN, SILVER, 15.75 X 12.28 X 10.24 CM (25%)",Peoples Services,Client Care/Assistance,A61011,
http://opendatacommunities.org/id/london-borough-council/sutton,London Borough of Sutton,12/02/2023,10010356,8.33, AMZNMKTPLACE,"SPLIT - WHITEFURZE 30 LITRE PLASTIC SWING TOP BIN, SILVER, 15.75 X 12.28 X 10.24 CM (25%)",Peoples Services,Client Care/Assistance,A61011,
http://opendatacommunities.org/id/london-borough-council/sutton,London Borough of Sutton,23/02/2023,10010356,6.66, AMZNMKTPLACE AMAZON.CO,"SPLIT - BADEN WOMEN'S ZONE RUBBER BASKETBALL, INDOOR AND OUTDOOR BALL, PURPLE, SIZE 6 (100%)",Peoples Services,Client Care/Assistance,A61011,
http://opendatacommunities.org/id/london-borough-council/sutton,London Borough of Sutton,23/02/2023,10010356,9.16, AMZNMKTPLACE AMAZON.CO,SPLIT - 20KG WESTLAND PLAY SAND (100%),Peoples Services,Client Care/Assistance,A61011,
http://opendatacommunities.org/id/london-borough-council/sutton,London Borough of Sutton,23/02/2023,10010356,29.16, AMZNMKTPLACE AMAZON.CO,SPLIT - CIPHER STUNT SCOOTER STREET PRO KICK/PUSH 360 SPIN TRICKS EDITION (MINT) (100%),Peoples Services,Client Care/Assistance,A61011,
http://opendatacommunities.org/id/london-borough-council/sutton,London Borough of Sutton,23/02/2023,10010356,30.82, AMZNMKTPLACE AMAZON.CO,SPLIT - BOPSTER FOLDABLE SCOOTER FOR KIDS AGES 4+ | ADJUSTABLE HEIGHT | LIGHTWEIGHT FOLDING KIDS SCOOTER WITH SOFT HANDLEBAR GRIPS | 4 COLOUR OPTIONS FOR BOYS (100%),Peoples Services,Client Care/Assistance,A61011,
http://opendatacommunities.org/id/london-borough-council/sutton,London Borough of Sutton,23/02/2023,10010356,31.87, AMZNMKTPLACE AMAZON.CO,SPLIT - BOLDCUBE STUNT SCOOTER FOR KIDS AGES 6-12 8-12 YEARS - FREESTYLE SCOOTER 360 - ALUMINIUM DECK - ABEC 7 WHEELS - TRICK STUNT SCOOTERS FOR TEENAGERS 11- (100%),Peoples Services,Client Care/Assistance,A61011,
http://opendatacommunities.org/id/london-borough-council/sutton,London Borough of Sutton,13/02/2023,10010356,11.99, AMZNMKTPLACE AMAZON.CO,SPLIT - DECALMILE SMALL HANDS CHANGE THE WORLD EQUALITY WALL STICKERS INSPIRATIONAL QUOTE RAINBOW WALL DECALS BABY NURSERY KIDS ROOM CLASSROOM WALL DECOR G03400 SUTTON FAMILY CENTRE (100%),Peoples Services,Miscellaneous Expenses,A49000,
http://opendatacommunities.org/id/london-borough-council/sutton,London Borough of Sutton,16/02/2023,10010356,105.28, TEAM SPORT KARTING,GO KARTING PAYMENT,Peoples Services,Client Care/Assistance,A61011,
http://opendatacommunities.org/id/london-borough-council/sutton,London Borough of Sutton,20/02/2023,10010356,34.58, AMZNBUSINESS 1308I68I4,BOOKS ABOUT AUTISM,Peoples Services,Client Care/Assistance,A61011,
http://opendatacommunities.org/id/london-borough-council/sutton,London Borough of Sutton,08/02/2023,10010356,4.59, AMZNBUSINESS 1Q19Q5MG4,"SPLIT - AMAZON BASICS HIGH-SPEED, ULTRA HD HDMI 2.0 CABLE, SUPPORTS 3D FORMATS AND WITH AUDIO RETURN CHANNEL, 1.8 M (100%)",Peoples Services,Miscellaneous Expenses,A49000,
http://opendatacommunities.org/id/london-borough-council/sutton,London Borough of Sutton,22/02/2023,10010356,383.04, GOVERNMENT EVENTS,SIMA HIRANI - WORKING IN PARTNERSHIP TO SAFEGUARD CHILDREN & YOUNG PEOPLE 2022,Peoples Services,Staff Development And Training,A15022,
http://opendatacommunities.org/id/london-borough-council/sutton,London Borough of Sutton,15/02/2023,10010356,525.00, HTTPS://ISLINGTON.CIVI,"BILLI BARTLEY, ANDREA BRYANT & SALLY MCLEISH - NRTPF TRAINING SOCIAL SERVICES SUPPORT FOR FAMILIES WITH NO RECOURSE TO PUBLIC FUNDS ON 26/04/23",Peoples Services,Staff Development And Training,A15022,
http://opendatacommunities.org/id/london-borough-council/sutton,London Borough of Sutton,02/02/2023,10010356,174.99, NATP LTD,BALANCING ENTRY AMOUNT (100%),Peoples Services,Staff Development And Training,A15022,
http://opendatacommunities.org/id/london-borough-council/sutton,London Borough of Sutton,02/02/2023,10010356,42.00, VIVA ACCESS LTD,KATHRYN BRADFORD - VIVA ACCESS ALL ABOUT STAIRLIFTS & WHEELCHAIRS 15/03/23,Peoples Services,Staff Development And Training,A15022,
http://opendatacommunities.org/id/london-borough-council/sutton,London Borough of Sutton,30/01/2023,10010356,40.00, WWW.ACAMH.ORG,MICHAEL RADLEY - ACAMHS YEARLY MEMBERSHIP,Peoples Services,Staff Development And Training,A15022,
http://opendatacommunities.org/id/london-borough-council/sutton,London Borough of Sutton,30/01/2023,10010356,330.00, ANNA FREUD CENTRE,"""REDACTED - PERSONAL DATA"" FREUD CENTRE AND UK TRAUMA COUNCIL JOINT COURSE IN TRAUMATIC BEREAVEMENT",Peoples Services,Staff Development And Training,A15022,
http://opendatacommunities.org/id/london-borough-council/sutton,London Borough of Sutton,17/02/2023,10010356,-38.06, AMZ MEG4TEC,REFUND FOR AMAZON (100%),Peoples Services,Miscellaneous Expenses,A49000,
http://opendatacommunities.org/id/london-borough-council/sutton,London Borough of Sutton,03/02/2023,10010356,38.06, AMZNMKTPLACE,BOXES FOR YOUNG PEOPLE TO DECORATE (100%),Peoples Services,Client Care/Assistance,A61011,
http://opendatacommunities.org/id/london-borough-council/sutton,London Borough of Sutton,31/01/2023,10010356,11.00, SUTTON REGISTER OFFICE,BIRTH CERTIFICATE PAYMENT,Peoples Services,Equipment And Materials Purchase,A40000,
http://opendatacommunities.org/id/london-borough-council/sutton,London Borough of Sutton,14/02/2023,10010356,72.97, OPODO,FLIGHT FOR OVERSEAS SOCIAL WORKER A61010 G03840,Peoples Services,C.C.A Travel & Subsistance,A61010,
http://opendatacommunities.org/id/london-borough-council/sutton,London Borough of Sutton,14/02/2023,10010356,490.17, EMIRATES AIRLINES (ABBR. EMIRATES),FLIGHT FOR OVERSEAS SOCIAL WORKER A61010 G03840,Peoples Services,C.C.A Travel & Subsistance,A61010,
http://opendatacommunities.org/id/london-borough-council/sutton,London Borough of Sutton,02/02/2023,10010356,104.03, STORAGEMART UK #5215,STORAGE NEEDED FOR CLIENT TO KEEP THEIR BELONGINGS,Peoples Services,Storage And Archiving Services,A44085,
http://opendatacommunities.org/id/london-borough-council/sutton,London Borough of Sutton,04/02/2023,10010356,418.29, CS MORRISONS GIFT CARD,FOOD VOUCHERS FOR START CLIENTS' EMERGENCIES,Peoples Services,Miscellaneous Expenses,A49000,
http://opendatacommunities.org/id/london-borough-council/sutton,London Borough of Sutton,03/02/2023,10010356,422.30, ASDA STORES LTD,FOOD VOUCHERS FOR START CLIENTS' EMERGENCIES,Peoples Services,Miscellaneous Expenses,A49000,
http://opendatacommunities.org/id/london-borough-council/sutton,London Borough of Sutton,01/02/2023,10010356,"1,100.00", WHEEL FREEDOM,WHEELCHAIRS FOR START AND DYMOND HOUSE,Peoples Services,Miscellaneous Expenses,A49000,
http://opendatacommunities.org/id/london-borough-council/sutton,London Borough of Sutton,23/02/2023,10010356,-16.00, SUTTON COLLEGE,TESTING ENROLMENTS CHIP AND PIN,Corporate Balance Sheet,Sutton College,B32183,
http://opendatacommunities.org/id/london-borough-council/sutton,London Borough of Sutton,23/02/2023,10010356,-16.00, SUTTON COLLEGE,TESTING ENROLMENTS CHIP AND PIN,Corporate Balance Sheet,Sutton College,B32183,
http://opendatacommunities.org/id/london-borough-council/sutton,London Borough of Sutton,23/02/2023,10010356,-16.00, SUTTON COLLEGE,TESTING ENROLMENTS CHIP AND PIN,Corporate Balance Sheet,Sutton College,B32183,
http://opendatacommunities.org/id/london-borough-council/sutton,London Borough of Sutton,23/02/2023,10010356,16.00, SUTTON COLLEGE,TESTING ENROLMENTS CHIP AND PIN,Corporate Balance Sheet,Sutton College,B32183,
http://opendatacommunities.org/id/london-borough-council/sutton,London Borough of Sutton,23/02/2023,10010356,16.00, SUTTON COLLEGE,TESTING ENROLMENTS CHIP AND PIN,Corporate Balance Sheet,Sutton College,B32183,
http://opendatacommunities.org/id/london-borough-council/sutton,London Borough of Sutton,23/02/2023,10010356,16.00, SUTTON COLLEGE,TESTING ENROLMENTS CHIP AND PIN,Corporate Balance Sheet,Sutton College,B32183,
http://opendatacommunities.org/id/london-borough-council/sutton,London Borough of Sutton,15/02/2023,10010356,499.99, WWW.SCREWFIX.COM,PURCHASE OF PADDLE MIXER TO MIX ROAD LINING PAINT,Environment Housing and Neighbourhoods,Other Capital Expenditure,C20002,
http://opendatacommunities.org/id/london-borough-council/sutton,London Borough of Sutton,30/01/2023,10010356,-229.99, 123 REG LTD 003922138,IT SUBSCRIPTION,Health and Wellbeing,Subscriptions,A47010,
http://opendatacommunities.org/id/london-borough-council/sutton,London Borough of Sutton,20/02/2023,10010356,132.50, TVLICENSING.CO.UK,TV LICENCE,Health and Wellbeing,Subscriptions,A47010,
http://opendatacommunities.org/id/london-borough-council/sutton,London Borough of Sutton,01/02/2023,10010356,59.28, GSUITE_SUTTONCOLLEGE.A,GOOGLE CLOUD EMEA LIMITED 4655034443,Health and Wellbeing,Subscriptions,A47010,
http://opendatacommunities.org/id/london-borough-council/sutton,London Borough of Sutton,06/02/2023,10010356,229.99, 123 REG LTD 004402050,JT 123REG 275.99,Health and Wellbeing,Subscriptions,A47010,
http://opendatacommunities.org/id/london-borough-council/sutton,London Borough of Sutton,03/02/2023,10010356,132.25, INSTANTPRINT.CO.UK,INSTANTPRINT POSTERS & FLYERS SATURDAY SESSIONS 158.70 050223,Health and Wellbeing,Publicity,A44266,
http://opendatacommunities.org/id/london-borough-council/sutton,London Borough of Sutton,31/01/2023,10010356,110.44, FACEBK QSC6ZHT6A2,FACEBOOK 270123 110.44,Health and Wellbeing,Publicity,A44266,
http://opendatacommunities.org/id/london-borough-council/sutton,London Borough of Sutton,30/01/2023,10010356,93.65, MAILCHIMP,MAILCHIMP 300123 112.38,Health and Wellbeing,Publicity,A44266,
http://opendatacommunities.org/id/london-borough-council/sutton,London Borough of Sutton,27/01/2023,10010356,995.00, INSTANTPRINT.CO.UK,INSTANTPRINT 290123 995 COURSE GUIDE SPR SUM RERUN,Health and Wellbeing,Publicity,A44266,
http://opendatacommunities.org/id/london-borough-council/sutton,London Borough of Sutton,17/02/2023,10010356,101.76, PAYPAL  BIGART,BIG ART CORREX 170223 122.11,Health and Wellbeing,Publicity,A44266,
http://opendatacommunities.org/id/london-borough-council/sutton,London Borough of Sutton,13/02/2023,10010356,8.00, POUNDLAND LTD 1211,POUNDLAND 130223 8.00 GARDENING PROPS,Health and Wellbeing,Publicity,A44266,
http://opendatacommunities.org/id/london-borough-council/sutton,London Borough of Sutton,13/02/2023,10010356,5.47, BUFFER PLAN,EXHANGE RATE FEE FOR BUFFER ANNUAL 240USD 110223,Health and Wellbeing,Publicity,A44266,
http://opendatacommunities.org/id/london-borough-council/sutton,London Borough of Sutton,11/02/2023,10010356,199.03, BUFFER PLAN,BUFFER ANNUAL 240USD 110223,Health and Wellbeing,Publicity,A44266,
http://opendatacommunities.org/id/london-borough-council/sutton,London Borough of Sutton,07/02/2023,10010356,47.99, ADOBE STOCK,ADOBE 070223 47.99,Health and Wellbeing,Publicity,A44266,
http://opendatacommunities.org/id/london-borough-council/sutton,London Borough of Sutton,06/02/2023,10010356,77.38, WWW.BANNERWORLD.CO.UK,BANNERWORLD BUILDING BANNER 060223 92.86,Health and Wellbeing,Publicity,A44266,
http://opendatacommunities.org/id/london-borough-council/sutton,London Borough of Sutton,06/02/2023,10010356,55.00, ETSY.COM - PRIDEANDPRO,ETSY PRIDE BADGES 55.00 060223,Health and Wellbeing,Publicity,A44266,
http://opendatacommunities.org/id/london-borough-council/sutton,London Borough of Sutton,02/02/2023,10010356,370.14, THOMAS RIDLEY FOODSERV,VENDING MACHINE,Health and Wellbeing,Vending Machines Supplies,A44041,
http://opendatacommunities.org/id/london-borough-council/sutton,London Borough of Sutton,03/02/2023,10010356,113.00, AMZNMKTPLACE,"SPLIT - GBC A3 FUSION 3000L HOME & OFFICE LAMINATOR, 1 MINUTE WARM UP TIME, HOT & COLD SETTINGS, A3 LAMINATOR MACHINE, BLACK, 4400749 (100%)",Health and Wellbeing,Insurance Claims,A44261,
http://opendatacommunities.org/id/london-borough-council/sutton,London Borough of Sutton,24/02/2023,10010356,6.57, AMZNMKTPLACE AMAZON.CO,"SPLIT - 300 PCS WOODEN DOWELS ASSORTED, M6 M8 M10 WOOD PLUGS DOWEL RODS, WOODWORK PINS TAPERED AND RIBBED FOR GROOVED FLUTED, CRAFT, DIY, CARPENTRY (51.27%)",Health and Wellbeing,Equipment And Materials Purchase,A40000,
http://opendatacommunities.org/id/london-borough-council/sutton,London Borough of Sutton,24/02/2023,10010356,6.24, AMZNMKTPLACE AMAZON.CO,"SPLIT - 28 PCS DOWEL CENTRE POINT SET, DOWEL PIN CENTER WOODWORKING ALIGNMENT TOOL, DOWEL PIN CENTRE POINTS, WOOD DOWEL TENON CENTERS POINTS PINS MARKER DRILL (48.73%)",Health and Wellbeing,Equipment And Materials Purchase,A40000,
http://opendatacommunities.org/id/london-borough-council/sutton,London Borough of Sutton,24/02/2023,10010356,8.92, AMZNMKTPLACE AMAZON.CO,AMAZON DIY RESOURCES 240223 10.70,Health and Wellbeing,Equipment And Materials Purchase,A40000,
http://opendatacommunities.org/id/london-borough-council/sutton,London Borough of Sutton,02/02/2023,10010356,13.32, AMZNMKTPLACE AMAZON.CO,INV-GB-1333669575-2023-88 COLOURED CARD,Health and Wellbeing,Equipment And Materials Purchase,A40000,
http://opendatacommunities.org/id/london-borough-council/sutton,London Borough of Sutton,20/02/2023,10010356,9.99, AMZNBUSINESS 131XM8684,"SPLIT - CASIO SCIENTIFIC CALCULATOR FX-83GTX, BLUE (100%)",Peoples Services,LAC - Education,A44280,
http://opendatacommunities.org/id/london-borough-council/sutton,London Borough of Sutton,12/02/2023,10010356,5.24, AMZNBUSINESS 1Q7B169Z4,"SPLIT - PEARSON REVISE AQA GCSE ENGLISH REVISION CARDS (WITH FREE ONLINE REVISION GUIDE) - 2023 AND 2024 EXAMS: FOR HOME LEARNING, 2022 AND 2023 ASSESSMENTS A (100%)",Peoples Services,LAC - Education,A44280,
http://opendatacommunities.org/id/london-borough-council/sutton,London Borough of Sutton,10/02/2023,10010356,8.59, AMZNMKTPLACE,SPLIT - SECRET WEAPON (ALEX RIDER) (100%),Peoples Services,LAC - Education,A44280,
http://opendatacommunities.org/id/london-borough-council/sutton,London Borough of Sutton,09/02/2023,10010356,6.99, AMZNBUSINESS 1Q05826K4,SPLIT - MR BRUFF'S GUIDE TO GCSE ENGLISH LANGUAGE (100%),Peoples Services,LAC - Education,A44280,
http://opendatacommunities.org/id/london-borough-council/sutton,London Borough of Sutton,09/02/2023,10010356,4.00, AMZNBUSINESS 1Q9M396L4,SPLIT - DEAR ZOO: LIFT THE FLAP 40TH ANNIVERSARY EDITION (114.29%),Peoples Services,LAC - Education,A44280,
http://opendatacommunities.org/id/london-borough-council/sutton,London Borough of Sutton,09/02/2023,10010356,-0.50, AMZNBUSINESS 1Q9M396L4,BALANCING ENTRY AMOUNT (-42.87%),Peoples Services,LAC - Education,A44280,
http://opendatacommunities.org/id/london-borough-council/sutton,London Borough of Sutton,09/02/2023,10010356,10.99, AMZNBUSINESS 1Q6L11BP4,SPLIT - GCSE COMPUTER SCIENCE OCR COMPLETE REVISION & PRACTICE: SUPERB FOR THE 2023 AND 2024 EXAMS (CGP OCR GCSE COMPUTER SCIENCE) (55.01%),Peoples Services,LAC - Education,A44280,
http://opendatacommunities.org/id/london-borough-council/sutton,London Borough of Sutton,09/02/2023,10010356,8.99, AMZNBUSINESS 1Q6L11BP4,"SPLIT - PEARSON REVISE EDEXCEL GCSE MATHS FOUNDATION REVISION CARDS (WITH FREE ONLINE REVISION GUIDE) - 2023 AND 2024 EXAMS: FOR HOME LEARNING, 2022 AND 2023 (44.99%)",Peoples Services,LAC - Education,A44280,
http://opendatacommunities.org/id/london-borough-council/sutton,London Borough of Sutton,09/02/2023,10010356,6.50, AMZNBUSINESS 1Q6PV9BN4,"SPLIT - GCSE MATHS EDEXCEL REVISION GUIDE: FOUNDATION INC ONLINE EDITION, VIDEOS & QUIZZES: IDEAL FOR THE 2023 AND 2024 EXAMS (100%)",Peoples Services,LAC - Education,A44280,
http://opendatacommunities.org/id/london-borough-council/sutton,London Borough of Sutton,09/02/2023,10010356,10.38, AMZNBUSINESS 1Q2H06BH4,SPLIT - GCSE COMBINED SCIENCE: OCR 21ST CENTURY REVISION GUIDE - FOUNDATION (WITH ONLINE EDITION): PERFECT FOR THE 2023 AND 2024 EXAMS (CGP OCR 21ST GCSE COMB (100%),Peoples Services,LAC - Education,A44280,
http://opendatacommunities.org/id/london-borough-council/sutton,London Borough of Sutton,09/02/2023,10010356,6.50, AMZNBUSINESS 1Q1A60QH4,SPLIT - NEW GCSE ENGLISH LANGUAGE AQA READING FICTION EXAM PRACTICE WORKBOOK (FOR PAPER 1) - INC. ANSWERS: IDEAL FOR THE 2023 AND 2024 EXAMS (CGP AQA GCSE ENG (46.43%),Peoples Services,LAC - Education,A44280,
http://opendatacommunities.org/id/london-borough-council/sutton,London Borough of Sutton,09/02/2023,10010356,7.50, AMZNBUSINESS 1Q1A60QH4,SPLIT - NEW GCSE ENGLISH LANGUAGE AQA COMPLETE REVISION & PRACTICE - INCLUDES ONLINE EDITION AND VIDEOS: PERFECT FOR THE 2023 AND 2024 EXAMS (CGP AQA GCSE ENG (53.57%),Peoples Services,LAC - Education,A44280,
http://opendatacommunities.org/id/london-borough-council/sutton,London Borough of Sutton,09/02/2023,10010356,423.00, HILTON GARDEN INN,"HOTEL BOOKING FOR ""REDACTED - PERSONAL DATA"" CONFERENCE",Peoples Services,LAC - Education,A44280,
http://opendatacommunities.org/id/london-borough-council/sutton,London Borough of Sutton,09/02/2023,10010356,423.00, HILTON GARDEN INN,"HOTEL BOOKING FOR ""REDACTED - PERSONAL DATA"" CONFERENCE",Peoples Services,LAC - Education,A44280,
http://opendatacommunities.org/id/london-borough-council/sutton,London Borough of Sutton,08/02/2023,10010356,6.29, AMZNBUSINESS 1Q1YG4HN4,SPLIT - DOG MAN AND CAT KID: FROM THE CREATOR OF CAPTAIN UNDERPANTS (DOG MAN #4) (38.61%),Peoples Services,LAC - Education,A44280,
http://opendatacommunities.org/id/london-borough-council/sutton,London Borough of Sutton,08/02/2023,10010356,5.00, AMZNBUSINESS 1Q1YG4HN4,SPLIT - DOG MAN UNLEASHED: FROM THE CREATOR OF CAPTAIN UNDERPANTS (DOG MAN #2) (30.69%),Peoples Services,LAC - Education,A44280,
http://opendatacommunities.org/id/london-borough-council/sutton,London Borough of Sutton,08/02/2023,10010356,5.00, AMZNBUSINESS 1Q1YG4HN4,SPLIT - DOG MAN: A TALE OF TWO KITTIES: FROM THE CREATOR OF CAPTAIN UNDERPANTS (DOG MAN #3) (30.7%),Peoples Services,LAC - Education,A44280,
http://opendatacommunities.org/id/london-borough-council/sutton,London Borough of Sutton,08/02/2023,10010356,10.62, AMZNBUSINESS 1Q44L0VU4,BOOK,Peoples Services,LAC - Education,A44280,
http://opendatacommunities.org/id/london-borough-council/sutton,London Borough of Sutton,08/02/2023,10010356,7.00, AMZNBUSINESS 1Q0L75MS4,SPLIT - SPACEBOY: THE EPIC AND HILARIOUS NEW CHILDREN'S BOOK FOR 2022 FROM MULTI-MILLION BESTSELLING AUTHOR DAVID WALLIAMS (100%),Peoples Services,LAC - Education,A44280,
http://opendatacommunities.org/id/london-borough-council/sutton,London Borough of Sutton,08/02/2023,10010356,4.00, AMZNBUSINESS 1Q49C1MJ4,SPLIT - WHERE'S SPOT?: ERIC HILL (SPOT - ORIGINAL LIFT THE FLAP) (114.29%),Peoples Services,LAC - Education,A44280,
http://opendatacommunities.org/id/london-borough-council/sutton,London Borough of Sutton,08/02/2023,10010356,-0.50, AMZNBUSINESS 1Q49C1MJ4,BALANCING ENTRY AMOUNT (-42.87%),Peoples Services,LAC - Education,A44280,
http://opendatacommunities.org/id/london-borough-council/sutton,London Borough of Sutton,08/02/2023,10010356,7.85, AMZNBUSINESS 1Q07J3HD4,SPLIT - WE ARE ALL MADE OF MOLECULES (100%),Peoples Services,LAC - Education,A44280,
http://opendatacommunities.org/id/london-borough-council/sutton,London Borough of Sutton,08/02/2023,10010356,4.00, AMZNBUSINESS 1Q0WF5MI4,SPLIT - DOG MAN: FROM THE CREATOR OF CAPTAIN UNDERPANTS (DOG MAN #1) (100%),Peoples Services,LAC - Education,A44280,
http://opendatacommunities.org/id/london-borough-council/sutton,London Borough of Sutton,03/02/2023,10010356,72.64, VISTAPRINT,VINYL BANNER PRINT,Peoples Services,LAC - Education,A44280,
http://opendatacommunities.org/id/london-borough-council/sutton,London Borough of Sutton,01/02/2023,10010356,170.83, AMZNMKTPLACE,"SPLIT - HP STREAM 11 INCH LAPTOP PC 11-AK0028SA, INTEL CELERON 1.1GHZ, 4GB RAM, 64GB SSD, HD 1366 X 768, DIAMOND WHITE, MICROSOFT 365 PERSONAL 12 MONTHS INCLUDED (100%)",Peoples Services,LAC - Education,A44280,
